[Event "Cracovia Chess Festival A 2021"]
[Site "Cracow"]
[Date "2022.01.04"]
[Round "9.39"]
[White "Gbyl, Andrzej"]
[Black "Bombek, Peter"]
[Result "0-1"]
[ECO "D33"]
[WhiteElo "2228"]
[BlackElo "2099"]
[Annotator "ChessBase"]
[PlyCount "56"]
[EventDate "2021.12.27"]
[EventCountry "POL"]
[SourceTitle "playchess.com"]
[Source "ChessBase"]
[SourceQuality "1"]
[TimeControl "40/5400+30:1800+30"]

1. d4 {[%emt 0:00:02]} d5 {[%emt 0:00:04]} 2. c4 {[%emt 0:00:05]} e6 {[%emt 0:00:03]} 3. Nc3 {[%emt 0:00:07]} c5 {[%emt 0:00:20]} 4. cxd5 {[%emt 0:00:24]} exd5 {[%emt 0:00:06]} 5. Nf3 {[%emt 0:00:14]} Nc6 {[%emt 0:00:20]} 6. g3 {[%emt 0:00:26]} Nf6 {[%emt 0:00:24]} 7. Bg2 {[%emt 0:00:05]} cxd4 {[%emt 0:00:30]} 8. Nxd4 {[%emt 0:00:09]} Bc5 {[%emt 0:00:23]} 9. Nxc6 {[%emt 0:01:00]} bxc6 {[%emt 0:00:05]} 10. O-O {[%emt 0:01:19]} O-O {[%emt 0:00:13]} 11. Qc2 {[%emt 0:01:04]} Bb6 {[%emt 0:04:44]} 12. b3 {[%emt 0:00:29]} Re8 {[%emt 0:01:58]} 13. Bb2 {[%emt 0:01:01]} Qe7 {[%emt 0:03:14]} 14. e3 {[%emt 0:01:06]} Bg4 {[%emt 0:02:23]} 15. Na4 {[%emt 0:02:32]} Rac8 {[%emt 0:00:47]} 16. Rac1 {[%emt 0:00:40]} h6 {[%emt 0:10:00]} 17. h3 {[%emt 0:00:39]} Bd7 {[%emt 0:05:47]} 18. Rfd1 {[%emt 0:00:45]} Ne4 {[%emt 0:02:20]} 19. Nxb6 {[%emt 0:05:24]} axb6 {[%emt 0:00:12]} 20. a4 {[%emt 0:00:49]} Bf5 {[%emt 0:10:52]} 21. g4 {[%emt 0:01:56]} Bd7 {[%emt 0:02:12]} 22. Qe2 {[%emt 0:02:18]} Qh4 {[%emt 0:04:47]} 23. Rd4 {[%emt 0:03:06]} Re6 {[%emt 0:18:18]} 24. Bxe4 {[%emt 0:01:53]} Rxe4 {[%emt 0:00:17]} 25. Rxe4 {[%emt 0:00:21]} dxe4 {[%emt 0:00:05]} 26. Kg2 {[%emt 0:00:55]} h5 {[%emt 0:01:58]} 27. Rg1 {[%emt 0:03:29]} hxg4 {[%emt 0:03:04]} 28. hxg4 {[%emt 0:00:06]} Bxg4 {[%emt 0:00:50]} 0-1